bitfinex-derivatives/quotes_BTCF0:USTF0_20210104
["timestamp","ask_amount","ask_price","bid_price","bid_amount"]
[1609770422721,5.2643,31670.0,31644.0,2.02935924]
[1609770423615,5.2643,31670.0,31643.0,0.11824]
[1609770424114,5.2643,31670.0,31654.0,0.13632608]
[1609770424315,5.2643,31670.0,31654.0,0.28662608]
[1609770424517,5.2643,31670.0,31654.0,0.1503]
[1609770426117,0.13632608,31655.0,31654.0,0.1503]
[1609770426319,0.13632608,31655.0,31643.0,0.11824]
[1609770426518,4.23021608,31655.0,31643.0,0.11824]
[1609770427322,0.24501608,31655.0,31643.0,0.11824]
[1609770427825,0.10869,31655.0,31630.0,3.8416]
[1609770428225,0.10869,31655.0,31641.0,0.13632608]
[1609770428426,4.53639,31655.0,31641.0,0.13632608]
[1609770429628,0.10869,31655.0,31641.0,0.13632608]
[1609770430327,0.13632608,31642.0,31641.0,0.13632608]
[1609770431028,0.13632608,31642.0,31638.0,0.10312]
[1609770432428,0.13632608,31642.0,31640.0,0.13632608]
[1609770434330,3.8826,31649.0,31638.0,0.10312]
[1609770434734,3.8826,31649.0,31627.0,0.0951]
[1609770434933,3.8826,31649.0,31640.0,0.13632608]
[1609770435735,0.2868,31654.0,31640.0,0.13632608]
[1609770436836,0.13632608,31642.0,31640.0,0.13632608]
[1609770437037,0.2868,31654.0,31640.0,0.13632608]
[1609770437437,0.5714673,31661.0,31640.0,0.13632608]
[1609770438240,0.85098942,31663.0,31640.0,0.13632608]
[1609770438440,0.85098942,31663.0,31639.0,0.10516]
[1609770438840,0.85098942,31663.0,31656.0,0.13632608]
[1609770439241,0.57138942,31663.0,31656.0,0.26773608]
[1609770439542,0.2969,31667.0,31656.0,0.26773608]
[1609770440843,0.13632608,31657.0,31656.0,0.26773608]
[1609770443947,0.2969,31667.0,31656.0,0.13141]
[1609770444350,0.2969,31667.0,31645.0,4.3438]
[1609770444550,0.2969,31667.0,31656.0,0.10407]
[1609770444952,0.57153246,31671.0,31656.0,0.10407]
[1609770445355,0.57153246,31671.0,31669.0,0.13632608]
[1609770445755,0.57153246,31671.0,31669.0,0.23607608]
[1609770445956,0.57156546,31675.0,31669.0,0.23607608]
[1609770447357,0.57156546,31675.0,31673.0,0.13632608]
[1609770447762,0.2821,31677.0,31673.0,0.13632608]
[1609770449171,0.57153844,31678.0,31673.0,0.13632608]
[1609770449377,0.70786452,31678.0,31677.0,0.13632608]
[1609770449574,0.70786452,31678.0,31677.0,0.26788608]
[1609770450168,0.42903844,31678.0,31677.0,0.26788608]
[1609770450577,0.42903844,31678.0,31677.0,0.13156]
[1609770450968,0.57179424,31684.0,31677.0,0.13156]
[1609770451366,0.57179424,31684.0,31683.0,0.13632608]
[1609770452161,0.88499807,31691.0,31683.0,0.13632608]
[1609770453463,0.13632608,31684.0,31683.0,0.13632608]
[1609770456768,0.1771,31691.0,31677.0,0.13156]
[1609770457167,0.1771,31691.0,31670.0,4.1854]
[1609770457367,0.1771,31691.0,31688.0,0.13632608]
[1609770457767,0.1771,31691.0,31688.0,0.29206608]
[1609770459368,0.13632608,31689.0,31688.0,0.29206608]
[1609770460975,0.13632608,31689.0,31688.0,0.15574]
[1609770461271,3.6517,31694.0,31688.0,0.15574]
[1609770461773,0.13632608,31689.0,31688.0,0.15574]
[1609770462675,0.13632608,31689.0,31684.0,0.13632608]
[1609770463878,0.13632608,31685.0,31684.0,0.13632608]
[1609770465675,0.13632608,31685.0,31669.0,4.08385]
[1609770465877,0.1771,31693.0,31677.0,0.13632608]
[1609770466381,3.5934,31678.0,31677.0,0.24573608]
[1609770466577,3.5934,31678.0,31669.0,0.09975]
[1609770466775,3.5934,31678.0,31650.0,2.03545673]
[1609770467176,3.5934,31678.0,31649.0,2.03679485]
[1609770467575,0.2808,31677.0,31649.0,2.03679485]
[1609770467775,0.3751,31677.0,31649.0,2.03679485]
[1609770467974,0.3751,31677.0,31657.0,0.13632608]
[1609770468176,0.3751,31677.0,31657.0,0.23745608]
[1609770468177,0.2808,31677.0,31657.0,0.23745608]
[1609770468776,0.2808,31677.0,31657.0,0.10113]
[1609770469481,0.96658314,31677.0,31657.0,0.10113]
[1609770469879,0.13632608,31658.0,31657.0,0.10113]
[1609770470281,4.45732608,31658.0,31657.0,0.10113]
[1609770473183,0.13632608,31658.0,31647.0,0.13632608]
[1609770473983,4.28936495,31670.0,31657.0,0.13632608]
[1609770475187,3.6036,31670.0,31657.0,0.13632608]
[1609770475887,0.13632608,31658.0,31657.0,0.13632608]
[1609770479997,0.80672608,31658.0,31657.0,0.13632608]
[1609770480598,0.80672608,31658.0,31652.0,0.13994]
[1609770480799,0.80672608,31658.0,31639.0,0.10516]
[1609770481200,0.80672608,31658.0,31635.0,4.8953]
[1609770481902,0.6704,31658.0,31652.0,0.13632608]
[1609770482402,0.6704,31658.0,31652.0,0.29028608]
[1609770482803,0.3023523,31670.0,31652.0,0.29028608]
[1609770484104,0.3023523,31670.0,31652.0,0.15396]
[1609770484307,0.01925966,31668.0,31652.0,0.15396]
[1609770484707,0.13632608,31653.0,31652.0,0.29028608]
[1609770489711,5.186,31658.0,31652.0,0.29028608]
[1609770490115,0.2831,31670.0,31652.0,0.29028608]
[1609770490614,0.2831,31670.0,31662.0,0.13632608]
[1609770491014,0.13653,31671.0,31662.0,0.13632608]
[1609770491214,0.01927337,31672.0,31660.0,0.10311]
[1609770492114,0.01927467,31677.0,31660.0,0.10311]
[1609770492715,0.01927467,31677.0,31674.0,0.13632608]
[1609770492915,4.1617,31681.0,31674.0,0.26936608]
[1609770494616,0.13632608,31679.0,31674.0,0.26936608]
[1609770496820,0.13632608,31679.0,31678.0,0.13632608]
[1609770499522,0.13632608,31679.0,31660.0,0.10311]
[1609770499724,4.31942608,31679.0,31678.0,0.12307]
[1609770499923,4.1347,31672.0,31671.0,0.11007]
[1609770500122,4.1347,31672.0,31671.0,0.07887]
[1609770500322,4.1347,31672.0,31650.0,2.03766803]
[1609770500923,0.13632608,31651.0,31650.0,2.03766803]
[1609770502324,0.13632608,31651.0,31643.0,0.13632608]
[1609770502924,0.13632608,31644.0,31643.0,0.13632608]
[1609770504726,0.01930822,31664.0,31643.0,0.27897608]
[1609770504925,0.1556343,31664.0,31663.0,0.13632608]
[1609770505326,0.01930822,31664.0,31663.0,0.13632608]
[1609770505929,0.57339382,31664.0,31663.0,0.13632608]
[1609770506127,0.57339382,31664.0,31658.0,0.14974]
[1609770506826,0.57339382,31664.0,31663.0,3.723]
[1609770507027,0.13632608,31682.0,31663.0,3.85932608]
[1609770508127,0.57344672,31684.0,31663.0,3.85932608]
[1609770508530,0.57326246,31688.0,31663.0,3.85932608]
[1609770508927,0.57326246,31688.0,31687.0,0.13632608]
[1609770510529,0.34106246,31688.0,31687.0,0.13632608]
[1609770510929,0.68781399,31695.0,31687.0,0.13632608]
[1609770511130,0.13632608,31693.0,31687.0,0.13632608]
[1609770511428,0.68781399,31695.0,31685.0,0.12598]
[1609770512230,0.68742247,31701.0,31685.0,0.12598]
[1609770512931,0.68742247,31701.0,31692.0,3.8768]
[1609770513132,0.13632608,31700.0,31695.0,0.13632608]
[1609770513731,0.68730621,31702.0,31693.0,0.10329]
[1609770514333,0.68701766,31705.0,31693.0,0.10329]
[1609770515134,0.13632608,31696.0,31693.0,0.10329]
[1609770515934,0.68698037,31706.0,31693.0,0.10329]
[1609770517035,0.13632608,31700.0,31699.0,0.13632608]
[1609770523740,0.13632608,31700.0,31693.0,0.10329]
[1609770523939,0.13632608,31700.0,31685.0,0.12598]
[1609770524340,0.13632608,31700.0,31673.0,4.5282]
[1609770525142,4.1104,31701.0,31687.0,0.13632608]
[1609770525342,4.1104,31701.0,31687.0,0.27834608]
[1609770526141,4.1104,31701.0,31687.0,0.14202]
[1609770527041,0.13632608,31688.0,31687.0,0.14202]
[1609770528043,4.1104,31701.0,31687.0,0.14202]
[1609770528446,0.287,31703.0,31687.0,0.14202]
[1609770528947,0.97206891,31703.0,31687.0,0.14202]
[1609770529147,0.13632608,31688.0,31687.0,0.14202]
[1609770529549,0.97206891,31703.0,31687.0,0.14202]
[1609770530352,0.685047,31701.0,31686.0,5.1605]
[1609770531051,0.685047,31701.0,31688.0,0.13632608]
[1609770531251,0.685047,31701.0,31660.0,0.2937]
[1609770531452,5.003,31702.0,31661.0,3.6844]
[1609770532853,5.003,31702.0,31662.0,0.0948]
[1609770533053,5.003,31702.0,31680.0,0.13632608]
[1609770533253,5.003,31702.0,31667.0,0.0961]
[1609770533454,5.003,31702.0,31661.0,3.6844]
[1609770533654,0.287,31703.0,31672.0,4.7448]
[1609770533854,0.287,31703.0,31667.0,0.13988]
[1609770533855,0.287,31703.0,31667.0,0.01078]
[1609770534055,3.5435,31668.0,31667.0,0.01078]
[1609770534453,3.5435,31668.0,31667.0,8e-05]
[1609770535255,3.67982608,31668.0,31658.0,0.13572]
[1609770536055,0.13632608,31668.0,31658.0,0.13572]
[1609770536356,4.7739,31665.0,31658.0,0.13572]
[1609770537155,4.7739,31665.0,31660.0,0.13632608]
[1609770537957,0.13102,31670.0,31660.0,0.13632608]
[1609770538158,0.00971948,31673.0,31660.0,0.13632608]
[1609770539160,0.00971948,31673.0,31672.0,0.13632608]
[1609770539360,0.13632608,31678.0,31672.0,0.24728608]
[1609770541162,0.13632608,31678.0,31677.0,0.13632608]
[1609770542964,4.3348,31689.0,31672.0,0.11096]
[1609770543164,0.0097173,31692.0,31672.0,0.11096]
[1609770543365,0.13632608,31683.0,31682.0,0.13632608]
[1609770545966,0.00972325,31690.0,31682.0,0.13632608]
[1609770546366,0.00972878,31692.0,31682.0,0.13632608]
[1609770547367,0.00972878,31692.0,31689.0,0.13632608]
[1609770547770,0.00972811,31693.0,31689.0,0.13632608]
[1609770548869,0.00973381,31695.0,31689.0,0.13632608]
[1609770549467,0.13632608,31690.0,31689.0,0.13632608]
[1609770550068,0.00973359,31696.0,31689.0,0.13632608]
[1609770551469,0.00973359,31696.0,31695.0,0.13632608]
[1609770551669,0.00973447,31697.0,31695.0,0.13632608]
[1609770552671,0.64264133,31698.0,31695.0,0.13632608]
[1609770552871,0.57280686,31698.0,31695.0,0.13632608]
[1609770553071,0.57280686,31698.0,31695.0,4.23392608]
[1609770553270,0.55000686,31698.0,31695.0,4.23392608]
[1609770553471,0.50269318,31700.0,31695.0,4.23392608]
[1609770554176,0.68755363,31702.0,31695.0,4.23392608]
[1609770554374,0.62565363,31702.0,31695.0,4.23392608]
[1609770554573,0.96885506,31712.0,31695.0,4.23392608]
[1609770554773,0.68715506,31712.0,31695.0,4.23392608]
[1609770555375,0.68715506,31712.0,31711.0,0.13632608]
[1609770555775,0.68715506,31712.0,31711.0,0.24821608]
[1609770555978,0.83962682,31721.0,31711.0,0.24821608]
[1609770556577,0.83962682,31721.0,31711.0,0.34241608]
[1609770557177,0.83879351,31729.0,31711.0,0.34241608]
[1609770557377,0.83879351,31729.0,31727.0,0.13632608]
[1609770558477,0.83879351,31729.0,31727.0,0.27963608]
[1609770558677,0.83879351,31729.0,31727.0,0.37443608]
[1609770558878,0.2959,31739.0,31727.0,0.37443608]
[1609770558879,1.0144776,31733.0,31727.0,0.37443608]
[1609770559378,1.0144776,31733.0,31732.0,0.13632608]
[1609770559578,1.0144776,31733.0,31732.0,0.75272608]
[1609770560179,0.1771,31733.0,31732.0,0.75272608]
[1609770560378,0.13632608,31734.0,31732.0,0.75272608]
[1609770560578,0.13632608,31734.0,31732.0,0.84852608]
[1609770561479,0.13632608,31734.0,31733.0,0.0947]
[1609770563781,0.83589358,31745.0,31733.0,0.0947]
[1609770564180,0.1771,31750.0,31733.0,0.0947]
[1609770564181,1.10975432,31747.0,31737.0,4.7746]
[1609770564980,0.2742,31747.0,31737.0,4.7746]
[1609770565281,0.2742,31747.0,31738.0,0.0957]
[1609770565481,0.2742,31747.0,31746.0,0.13632608]
[1609770566583,0.2742,31747.0,31746.0,0.22982608]
[1609770566783,0.13632608,31748.0,31746.0,0.22982608]
[1609770566784,0.13632608,31748.0,31746.0,0.88342608]
[1609770566983,0.2947,31751.0,31746.0,0.88342608]
[1609770567285,0.83405316,31753.0,31746.0,0.88342608]
[1609770567484,0.83405316,31753.0,31752.0,0.13632608]
[1609770568585,0.83405316,31753.0,31747.0,0.0946]
[1609770568786,0.2864,31764.0,31742.0,0.1163]
[1609770568787,4.0193,31752.0,31742.0,0.1163]
[1609770569386,0.13632608,31743.0,31742.0,0.1163]
[1609770569786,4.11902608,31743.0,31742.0,0.1163]
[1609770569989,0.13632608,31743.0,31742.0,0.1163]
[1609770571489,0.13632608,31743.0,31742.0,0.25262608]
[1609770571889,4.2064,31752.0,31742.0,0.1163]
[1609770572389,4.2064,31752.0,31729.0,3.894]
[1609770573994,0.94756933,31759.0,31743.0,0.13632608]
[1609770574393,0.11506,31759.0,31743.0,0.13632608]
[1609770574592,0.8312242,31760.0,31743.0,0.13632608]
[1609770575592,0.8312242,31760.0,31738.0,0.1287]
[1609770575795,0.9351842,31760.0,31738.0,0.1287]
[1609770575992,0.46240315,31758.0,31741.0,0.13632608]
[1609770576392,4.01,31757.0,31741.0,0.13632608]
[1609770577394,0.46240093,31756.0,31741.0,0.13632608]
[1609770577994,0.13632608,31742.0,31741.0,0.13632608]
[1609770579096,0.13632608,31742.0,31738.0,0.1287]
[1609770579495,0.13632608,31742.0,31730.0,3.8483]
[1609770580095,0.13632608,31742.0,31741.0,0.13632608]
[1609770582296,4.43032608,31742.0,31741.0,0.13632608]
[1609770582497,4.43032608,31742.0,31736.0,0.16116]
[1609770583096,0.13632608,31742.0,31736.0,0.16116]
[1609770583496,3.9841,31740.0,31736.0,0.16116]
[1609770584096,0.13632608,31737.0,31727.0,0.14331]
[1609770584298,3.74142608,31737.0,31727.0,0.14331]
[1609770584496,3.74142608,31737.0,31724.0,0.13632608]
[1609770584497,3.84790608,31737.0,31724.0,0.13632608]
[1609770584696,3.84790608,31737.0,31690.0,1.97729192]
[1609770584697,0.24280608,31737.0,31690.0,1.97729192]
[1609770584898,3.5629,31722.0,31694.0,3.5877]
[1609770585298,0.10648,31737.0,31690.0,1.97729192]
[1609770585499,0.10648,31737.0,31694.0,3.7753]
[1609770585699,0.10648,31737.0,31694.0,0.1304]
[1609770585900,0.10648,31737.0,31702.0,4.5294]
[1609770586100,0.10648,31737.0,31719.0,0.13632608]
[1609770586301,0.2792,31736.0,31719.0,0.13632608]
[1609770586701,0.2792,31736.0,31702.0,4.68255]
[1609770587403,0.2792,31736.0,31702.0,4.77695]
[1609770587604,0.2792,31736.0,31702.0,4.68255]
[1609770588005,0.2792,31736.0,31702.0,0.15315]
[1609770588204,0.10648,31737.0,31716.0,4.932]
[1609770588605,0.10648,31737.0,31736.0,0.13632608]
[1609770589706,0.13632608,31738.0,31736.0,0.13632608]
[1609770591608,0.13632608,31738.0,31736.0,5.08172608]
[1609770592911,0.13632608,31738.0,31736.0,0.13632608]
[1609770594513,0.13632608,31738.0,31735.0,0.14209]
[1609770595614,0.13632608,31738.0,31732.0,0.13632608]
[1609770601018,0.13632608,31738.0,31732.0,0.27265216]
[1609770601620,0.13632608,31738.0,31731.0,4.1778]
[1609770602518,0.1771,31750.0,31731.0,4.1778]
[1609770602918,0.1771,31750.0,31731.0,4.28045]
[1609770603318,0.1771,31750.0,31749.0,0.13632608]
[1609770603519,0.2897,31752.0,31749.0,0.13632608]
[1609770603719,0.56758646,31753.0,31746.0,0.15959]
[1609770603919,0.59065239,31755.0,31752.0,5.0634]
[1609770604122,0.23705239,31755.0,31753.0,0.0948]
[1609770604319,0.04835239,31755.0,31753.0,0.21574]
[1609770604520,1.75293614,31765.0,31753.0,0.21574]
[1609770604721,0.1771,31770.0,31753.0,0.21574]
[1609770604920,0.48254652,31776.0,31753.0,0.21574]
[1609770605121,0.67244635,31779.0,31753.0,0.21574]
[1609770605320,0.82959949,31784.0,31778.0,4.84042608]
[1609770605520,0.11309949,31784.0,31778.0,4.96817608]
[1609770605723,0.9321442,31789.0,31778.0,4.96817608]
[1609770605920,0.4554442,31789.0,31778.0,0.12775]
[1609770606121,3.40078821,31822.0,31788.0,4.6116]
[1609770606322,3.6327,31843.0,31788.0,4.71338]
[1609770606521,0.1889,31846.0,31789.0,0.0938]
[1609770606721,0.0948,31846.0,31794.0,5.1354]
[1609770606921,0.0935,31832.0,31789.0,0.0938]
[1609770607123,0.11748,31826.0,31807.0,3.5931]
[1609770607321,0.13632608,31825.0,31808.0,0.13632608]
[1609770607722,0.13632608,31825.0,31810.0,0.3057964]
[1609770607922,0.13632608,31825.0,31808.0,0.13632608]
[1609770608124,0.13632608,31825.0,31813.0,4.2533]
[1609770608723,0.47214948,31849.0,31809.0,0.0937]
[1609770609024,0.47214948,31849.0,31809.0,3.6208]
[1609770609425,0.11395,31850.0,31809.0,3.6208]
[1609770609825,0.13632608,31833.0,31822.0,0.13632608]
[1609770610025,0.13632608,31833.0,31822.0,0.29391608]
[1609770611229,0.11395,31850.0,31822.0,0.29391608]
[1609770611729,0.11395,31850.0,31822.0,0.15759]
[1609770612332,0.11395,31850.0,31839.0,0.13632608]
[1609770613232,0.5617,31848.0,31839.0,0.13632608]
[1609770613435,0.5617,31848.0,31834.0,4.6265]
[1609770614435,0.13632608,31837.0,31835.0,0.13632608]
[1609770614635,0.13632608,31837.0,31836.0,3.9537]
[1609770615637,0.5617,31848.0,31836.0,3.9537]
[1609770617039,0.3734,31848.0,31836.0,3.9537]
[1609770617440,0.3734,31848.0,31847.0,0.13632608]
[1609770619443,0.3734,31848.0,31839.0,0.10715]
[1609770619843,0.3734,31848.0,31847.0,0.13632608]
[1609770620643,0.2804,31848.0,31847.0,0.23152608]
[1609770620843,0.2804,31848.0,31847.0,0.13632608]
[1609770621043,0.2012,31848.0,31847.0,0.13632608]
[1609770621246,0.0804,31848.0,31847.0,0.13632608]
[1609770621846,0.0804,31848.0,31846.0,0.13573]
[1609770622445,0.0804,31848.0,31847.0,0.13632608]
[1609770622647,0.00031612,31855.0,31847.0,0.13632608]
[1609770622845,0.07868641,31869.0,31847.0,0.13632608]
[1609770623247,0.07868641,31869.0,31868.0,3.8721]
[1609770624648,8.641e-05,31869.0,31868.0,3.8721]
[1609770625049,8.641e-05,31869.0,31868.0,4.00842608]
[1609770625249,8.641e-05,31869.0,31868.0,0.13632608]
[1609770626050,0.24408641,31875.0,31868.0,0.13632608]
[1609770627051,0.24408641,31875.0,31869.0,0.0939]
[1609770627252,0.11818641,31875.0,31869.0,0.0939]
[1609770627453,0.05518641,31875.0,31874.0,0.13632608]
[1609770628155,8.641e-05,31875.0,31874.0,0.13632608]
[1609770629456,8.641e-05,31875.0,31868.0,0.0935]
[1609770629857,8.641e-05,31875.0,31868.0,0.19462]
[1609770630057,8.641e-05,31875.0,31874.0,0.13632608]
[1609770631282,8.641e-05,31875.0,31868.0,0.10112]
[1609770632069,0.13632608,31878.0,31873.0,0.13632608]
[1609770632256,0.2937,31896.0,31873.0,0.13632608]
[1609770632457,0.2937,31896.0,31868.0,0.10112]
[1609770632658,0.2937,31896.0,31871.0,4.5072]
[1609770632857,0.2937,31896.0,31868.0,0.10112]
[1609770633057,0.2937,31896.0,31873.0,3.9958]
[1609770634458,0.2937,31896.0,31889.0,0.13632608]
[1609770635859,0.2937,31896.0,31890.0,0.5071]
[1609770636059,0.2937,31896.0,31889.0,0.13632608]
[1609770636260,0.2937,31896.0,31891.0,5.0714]
[1609770637161,0.2937,31896.0,31894.0,0.13632608]
[1609770637763,0.2937,31896.0,31891.0,5.0714]
[1609770639166,0.2937,31896.0,31894.0,0.13632608]
[1609770641165,0.2937,31896.0,31883.0,4.4309]
[1609770641568,0.2937,31896.0,31895.0,0.13632608]
[1609770642767,0.2937,31896.0,31884.0,0.11266]
[1609770643668,0.2937,31896.0,31894.0,0.13632608]
[1609770644069,0.15698,31902.0,31894.0,5.2412]
[1609770644268,0.1771,31908.0,31884.0,0.11266]
[1609770645573,0.1771,31908.0,31895.0,0.13632608]
[1609770645771,0.1771,31908.0,31884.0,0.11266]
[1609770645973,0.28756,31908.0,31884.0,0.11266]
[1609770646775,0.28756,31908.0,31878.0,3.7206]
[1609770647575,0.28756,31908.0,31886.0,0.13632608]
[1609770649577,0.13632608,31887.0,31886.0,0.13632608]
[1609770651575,0.13632608,31887.0,31880.0,0.12025]
[1609770651977,0.13632608,31887.0,31864.0,4.3364]
[1609770652178,0.13632608,31887.0,31796.0,1.86864984]
[1609770652376,0.2978,31886.0,31849.0,4.1953]
[1609770652576,0.2978,31886.0,31849.0,4.35216]
[1609770652774,0.2957,31885.0,31849.0,4.35216]
[1609770653576,0.13632608,31861.0,31860.0,0.13632608]
[1609770653981,4.46891,31876.0,31849.0,0.15686]
[1609770654778,0.14131,31876.0,31849.0,0.15686]
[1609770655678,0.14131,31876.0,31875.0,0.13632608]
[1609770656279,0.2957,31885.0,31875.0,0.13632608]
[1609770657683,0.2957,31885.0,31884.0,0.13632608]
[1609770659085,0.2957,31885.0,31872.0,5.0045]
[1609770659285,0.2957,31885.0,31862.0,0.15744]
[1609770659688,0.2957,31885.0,31881.0,0.13632608]
[1609770661086,0.2957,31885.0,31873.0,5.1291]
[1609770661686,0.2957,31885.0,31884.0,0.13632608]
[1609770662488,0.2957,31885.0,31862.0,4.10144]
[1609770663786,0.2957,31885.0,31884.0,0.13632608]
[1609770665691,0.43202608,31885.0,31884.0,0.13632608]
[1609770666691,0.43202608,31885.0,31864.0,3.7344]
[1609770667693,0.2957,31885.0,31877.0,0.13632608]
[1609770668493,10.0,31880.0,31877.0,0.13632608]
[1609770669095,10.0,31880.0,31864.0,3.7344]
[1609770669695,0.13632608,31871.0,31870.0,0.13632608]
[1609770669895,20.0,31880.0,31870.0,0.13632608]
[1609770670196,20.0,31880.0,31870.0,0.27692608]
[1609770670597,20.0,31880.0,31870.0,0.1406]
[1609770671696,20.0,31880.0,31872.0,0.13632608]
[1609770673700,0.13632608,31873.0,31870.0,0.1406]
[1609770674300,0.13632608,31873.0,31862.0,0.15744]
[1609770674500,3.7891,31875.0,31849.0,2.13368545]
[1609770675305,3.7891,31875.0,31849.0,0.15686]
[1609770675501,3.7891,31875.0,31845.0,1.98134739]
[1609770675701,3.7891,31875.0,31846.0,0.13632608]
[1609770676101,3.7891,31875.0,31846.0,0.14645]
[1609770676701,0.0937,31874.0,31846.0,0.14645]
[1609770676902,0.0937,31874.0,31836.0,1.98826895]
[1609770677303,3.7986,31863.0,31836.0,1.98826895]
[1609770677703,0.13632608,31837.0,31836.0,1.98826895]
[1609770677905,0.13632608,31837.0,31832.0,2.00124014]
[1609770678304,0.10842,31851.0,31832.0,2.00124014]
[1609770678504,0.10842,31851.0,31832.0,2.14242014]
[1609770679104,0.10842,31851.0,31832.0,0.14118]
[1609770679703,0.10842,31851.0,31846.0,0.13632608]
[1609770680104,0.13168,31863.0,31846.0,0.13632608]
[1609770680303,0.13168,31863.0,31841.0,0.10135]
[1609770681304,0.13168,31863.0,31832.0,0.14118]
[1609770681804,0.13168,31863.0,31836.0,0.13632608]
[1609770682805,3.6188,31864.0,31836.0,0.13632608]
[1609770683007,10.0,31840.0,31836.0,0.13632608]
[1609770683807,0.13632608,31838.0,31836.0,0.13632608]
[1609770684006,10.0,31840.0,31836.0,0.13632608]
[1609770688514,10.0,31840.0,31832.0,0.85698]
[1609770689915,10.0,31840.0,31826.0,1.97705209]
[1609770690717,10.0,31840.0,31825.0,1.97752983]
[1609770690919,0.094,31839.0,31825.0,1.97752983]
[1609770691118,10.0,31840.0,31825.0,1.97752983]
[1609770691721,10.0,31840.0,31830.0,0.13632608]
[1609770693822,0.13632608,31831.0,31830.0,0.13632608]
[1609770695425,9.70701392,31820.0,31808.0,1.98463699]
[1609770695825,9.70701392,31820.0,31819.0,0.13632608]
[1609770696027,9.70701392,31820.0,31819.0,0.28503608]
[1609770697128,9.70701392,31820.0,31819.0,0.14871]
[1609770698329,9.70701392,31820.0,31805.0,1.98203902]
[1609770698529,9.70701392,31820.0,31814.0,0.10149]
[1609770699631,9.70701392,31820.0,31811.0,0.11872]
[1609770699832,0.13632608,31812.0,31811.0,0.11872]
[1609770700831,0.13632608,31812.0,31798.0,1.98224862]
[1609770701533,0.13632608,31812.0,31785.0,1.98545594]
[1609770701933,9.70701392,31820.0,31794.0,0.13632608]
[1609770702133,9.70701392,31820.0,31794.0,0.13581]
[1609770703835,0.13632608,31795.0,31794.0,0.13581]
[1609770704133,0.13632608,31795.0,31790.0,0.13632608]
[1609770705135,0.14763,31805.0,31790.0,0.13632608]
[1609770705837,0.13632608,31799.0,31798.0,0.13632608]
[1609770706740,9.47330784,31780.0,31775.0,1.9893005]
[1609770706941,9.47330784,31780.0,31770.0,1.98625191]
[1609770707941,9.08887358,31780.0,31779.0,0.13632608]
[1609770708342,8.8005551,31780.0,31779.0,0.24322608]
[1609770712751,8.6122551,31780.0,31779.0,0.24322608]
[1609770712951,8.0834551,31780.0,31779.0,0.24322608]
[1609770713151,7.4384551,31780.0,31779.0,0.24322608]
[1609770713352,6.4463451,31780.0,31779.0,0.24322608]
[1609770713552,3.5136251,31780.0,31779.0,0.24322608]
[1609770713752,2.5780051,31780.0,31779.0,0.24322608]
[1609770713952,2.1835051,31780.0,31779.0,4.49382608]
[1609770714153,1.1824051,31780.0,31779.0,4.49382608]
[1609770714352,0.5381051,31780.0,31779.0,4.49382608]
[1609770714553,0.564005,31834.0,31779.0,4.49382608]
[1609770714955,0.2902,31840.0,31779.0,4.49382608]
[1609770715557,0.2902,31840.0,31780.0,0.094]
[1609770716059,0.2902,31840.0,31837.0,0.13632608]
[1609770717060,0.2902,31840.0,31809.0,0.14696]
[1609770717461,0.41396,31840.0,31809.0,0.14696]
[1609770718060,0.41396,31840.0,31824.0,0.13632608]
[1609770719966,0.41396,31840.0,31834.0,0.13632608]
[1609770720165,0.12376,31840.0,31834.0,0.13632608]
[1609770720566,0.12376,31840.0,31833.0,5.0278]
[1609770720765,0.04846,31840.0,31833.0,5.0278]
[1609770720965,6e-05,31840.0,31833.0,5.0278]
[1609770721968,6e-05,31840.0,31839.0,0.13632608]
[1609770722468,0.70024054,31858.0,31839.0,0.13632608]
[1609770722469,0.13632608,31858.0,31839.0,0.13632608]
[1609770723070,0.13632608,31858.0,31825.0,0.10432]
[1609770723270,0.25816608,31858.0,31825.0,0.10432]
[1609770723672,0.25816608,31858.0,31819.0,4.7522]
[1609770724172,0.12184,31858.0,31819.0,4.7522]
[1609770724674,0.12184,31858.0,31839.0,0.13632608]
[1609770725874,0.12184,31858.0,31819.0,4.7522]
[1609770726677,0.12184,31858.0,31834.0,0.13632608]
[1609770728275,0.1771,31861.0,31834.0,0.13632608]
[1609770728676,0.1771,31861.0,31843.0,0.13632608]
[1609770729576,0.1771,31861.0,31830.0,3.8758]
[1609770729778,0.32703,31861.0,31830.0,3.8758]
[1609770730778,0.32703,31861.0,31843.0,0.13632608]
[1609770731677,0.32703,31861.0,31845.0,4.3657]
[1609770732077,0.14993,31861.0,31845.0,4.3657]
[1609770732677,0.28625608,31861.0,31860.0,0.13632608]
[1609770735283,0.14993,31861.0,31860.0,0.13632608]
[1609770735583,0.2914,31882.0,31860.0,0.13632608]
[1609770736785,0.2914,31882.0,31864.0,0.13632608]
[1609770738687,0.2914,31882.0,31872.0,0.13632608]
[1609770738895,0.4633,31883.0,31872.0,0.13632608]
[1609770740188,0.4633,31883.0,31862.0,4.3381]
[1609770740386,0.58656,31883.0,31856.0,0.10546]
[1609770740586,4.9398,31877.0,31856.0,0.10546]
[1609770741188,0.13632608,31857.0,31848.0,0.13892]
[1609770741388,0.13632608,31857.0,31843.0,1.93205938]
[1609770741588,0.13632608,31857.0,31840.0,0.11929]
[1609770742091,4.8867,31863.0,31836.0,1.93646239]
[1609770742492,0.11493,31864.0,31836.0,1.93646239]
[1609770742697,0.11493,31864.0,31833.0,0.10163]
[1609770742892,0.11493,31864.0,31831.0,4.338]
[1609770743096,0.25125608,31864.0,31863.0,0.13632608]
[1609770744111,0.25125608,31864.0,31852.0,4.4857]
[1609770744996,0.11493,31864.0,31852.0,4.4857]
[1609770745597,0.11493,31864.0,31855.0,0.13632608]
[1609770745997,0.11493,31864.0,31839.0,5.2281]
[1609770746197,4.0469,31865.0,31837.0,0.11176]
[1609770746396,0.11718,31864.0,31837.0,0.11176]
[1609770746796,0.11718,31864.0,31831.0,1.93806463]
[1609770746997,0.41188,31864.0,31831.0,1.93806463]
[1609770747598,0.41188,31864.0,31826.0,0.14296]
[1609770747599,0.13632608,31838.0,31837.0,0.13632608]
[1609770749301,0.12996,31845.0,31837.0,0.13632608]
[1609770749602,0.12996,31845.0,31843.0,0.13632608]
[1609770751604,0.13632608,31844.0,31843.0,0.13632608]
[1609770753105,0.13632608,31844.0,31826.0,0.14296]
[1609770753708,0.12996,31845.0,31838.0,0.13632608]
[1609770754107,4.489,31856.0,31824.0,0.13171]